bitfinex-derivatives/quotes_BTCF0:USTF0_20250827
["timestamp","ask_amount","ask_price","bid_price","bid_amount"]
[1756332531497,0.0899079,111220.0,111210.0,1.55663]
[1756332531690,0.1230279,111220.0,111210.0,1.18821888]
[1756332531895,0.1756479,111220.0,111210.0,1.466557]
[1756332532401,0.0899079,111220.0,111210.0,1.55647]
[1756332532596,0.0909079,111220.0,111210.0,1.55647]
[1756332532802,0.0919079,111220.0,111210.0,1.55647]
[1756332533396,0.16271552,111220.0,111210.0,1.55647]
[1756332533898,0.16271552,111220.0,111210.0,1.18805888]
[1756332534204,0.16271552,111220.0,111210.0,1.55647]
[1756332535301,0.24845552,111220.0,111210.0,1.466357]
[1756332535705,0.24845552,111220.0,111210.0,0.13502588]
[1756332535904,0.24845552,111220.0,111210.0,1.09786588]
[1756332538202,0.24845552,111220.0,111210.0,1.18777888]
[1756332538706,0.32185552,111220.0,111210.0,1.09774588]
[1756332539201,0.69853552,111220.0,111210.0,1.09766588]
[1756332539400,1.06694664,111220.0,111210.0,1.09766588]
[1756332539601,0.33773552,111220.0,111210.0,1.09766588]
[1756332540201,0.27583552,111220.0,111210.0,1.09766588]
[1756332540405,0.16271552,111220.0,111210.0,1.91679]
[1756332540607,0.16271552,111220.0,111210.0,1.465997]
[1756332540796,0.28712552,111220.0,111210.0,1.09754588]
[1756332540997,0.24515552,111220.0,111210.0,1.09754588]
[1756332541195,0.33443552,111220.0,111210.0,0.13502588]
[1756332541401,0.69523552,111220.0,111210.0,1.09750588]
[1756332542104,1.31364664,111220.0,111210.0,1.09750588]
[1756332542300,0.94523552,111220.0,111210.0,0.09386588]
[1756332542502,1.31364664,111220.0,111210.0,1.07810588]
[1756332542904,0.94523552,111220.0,111210.0,1.07810588]
[1756332543810,0.62448552,111220.0,111210.0,1.07810588]
[1756332544006,0.57333552,111220.0,111210.0,1.07810588]
[1756332544307,0.16271552,111220.0,111210.0,1.53643]
[1756332544712,0.16271552,111220.0,111210.0,1.78643]
[1756332545100,0.16271552,111220.0,111210.0,1.41801888]
[1756332545305,0.16271552,111220.0,111210.0,1.78643]
[1756332545505,0.16071552,111220.0,111210.0,1.78643]
[1756332546397,0.16071552,111220.0,111210.0,0.82403]
[1756332546603,0.16071552,111220.0,111210.0,1.716127]
[1756332547005,0.16071552,111220.0,111210.0,1.70851588]
[1756332547206,0.16071552,111220.0,111210.0,2.076927]
[1756332547406,0.16071552,111220.0,111210.0,2.1668401]
[1756332547609,0.19333552,111220.0,111210.0,1.716127]
[1756332547810,0.16071552,111220.0,111210.0,2.076927]
[1756332548004,0.16171552,111220.0,111210.0,2.076927]
[1756332548212,0.16171552,111220.0,111210.0,2.16684]
[1756332548814,0.16271552,111220.0,111210.0,2.16684]
[1756332550111,0.16271552,111220.0,111210.0,1.20468]
[1756332550316,0.16271552,111220.0,111210.0,2.16652]
[1756332550317,0.16171552,111220.0,111210.0,2.16652]
[1756332550618,0.18277552,111220.0,111210.0,2.076607]
[1756332551005,0.28714552,111220.0,111210.0,1.45819588]
[1756332551410,0.28614552,111220.0,111210.0,1.45819588]
[1756332551610,0.58343552,111220.0,111210.0,1.45815588]
[1756332551810,0.58343552,111220.0,111210.0,0.13555588]
[1756332552018,0.58343552,111220.0,111210.0,1.09727588]
[1756332552019,0.94423552,111220.0,111210.0,1.09727588]
[1756332552806,0.79257552,111220.0,111210.0,1.09727588]
[1756332553012,0.52151552,111220.0,111210.0,1.5556]
[1756332553212,0.52151552,111220.0,111210.0,1.18718888]
[1756332553411,0.52151552,111220.0,111210.0,1.50156994]
[1756332553617,0.16071552,111220.0,111210.0,1.86236994]
[1756332554122,0.0899079,111220.0,111210.0,2.11236994]
[1756332554512,0.0909079,111220.0,111210.0,2.11236994]
[1756332554709,0.0929079,111220.0,111210.0,2.11236994]
[1756332555419,0.0909079,111220.0,111210.0,2.11336994]
[1756332555808,0.0899079,111220.0,111210.0,2.11336994]
[1756332556012,0.3134523,111220.0,111210.0,1.77329694]
[1756332556307,0.3319823,111220.0,111210.0,1.41229694]
[1756332557518,0.3319823,111220.0,111210.0,1.09691588]
[1756332557921,0.3329823,111220.0,111210.0,1.09691588]
[1756332558316,0.3339823,111220.0,111210.0,1.09691588]
[1756332558821,0.3339823,111220.0,111210.0,1.41129694]
[1756332559017,0.3359823,111220.0,111210.0,0.44993694]
[1756332559318,0.3174523,111220.0,111210.0,1.41117694]
[1756332559514,0.3154523,111220.0,111210.0,1.41117694]
[1756332559717,0.3164523,111220.0,111210.0,1.41117694]
[1756332559913,0.3164523,111220.0,111210.0,1.09679588]
[1756332560111,1.58016336,111220.0,111210.0,8e-08]
[1756332560417,1.60517462,111220.0,111210.0,8e-08]
[1756332560722,1.60417462,111220.0,111210.0,8e-08]
[1756332560919,0.2616329,111210.0,111200.0,0.9611]
[1756332561225,2.43681396,111210.0,111200.0,1.01612]
[1756332561424,2.1224329,111210.0,111200.0,1.05781]
[1756332561723,2.43681396,111210.0,111200.0,1.05781]
[1756332562519,2.43681396,111210.0,111200.0,1.01596]
[1756332562720,2.45681396,111210.0,111200.0,1.01596]
[1756332563317,2.43681396,111210.0,111200.0,1.05765]
[1756332563916,2.43881396,111210.0,111200.0,1.05765]
[1756332564424,2.44081396,111210.0,111200.0,1.05765]
[1756332564821,2.44081396,111210.0,111200.0,0.96084]
[1756332565016,2.44081396,111210.0,111200.0,1.0775]
[1756332565323,2.43881396,111210.0,111200.0,1.0775]
[1756332565622,2.43981396,111210.0,111200.0,1.0775]
[1756332567227,2.44081396,111210.0,111200.0,1.0775]
[1756332567523,2.44081396,111210.0,111200.0,0.96084]
[1756332567725,2.46081396,111210.0,111200.0,0.96084]
[1756332568116,2.46081396,111210.0,111200.0,1.05765]
[1756332568826,2.44081396,111210.0,111200.0,1.05765]
[1756332569928,2.44081396,111210.0,111200.0,0.98825]
[1756332570329,2.44081396,111210.0,111200.0,1.01689]
[1756332570529,2.46081396,111210.0,111200.0,1.01689]
[1756332571134,2.46081396,111210.0,111200.0,1.05975]
[1756332571333,2.46081396,111210.0,111200.0,0.98825]
[1756332571533,2.46081396,111210.0,111200.0,1.01689]
[1756332571734,2.46081396,111210.0,111200.0,1.05975]
[1756332573027,2.44081396,111210.0,111200.0,1.05975]
[1756332574728,2.1264329,111210.0,111200.0,1.05975]
[1756332575128,2.44081396,111210.0,111200.0,1.05975]
[1756332576022,2.44081396,111210.0,111200.0,0.05605]
[1756332576436,0.089921,111200.0,111190.0,0.01840191]
[1756332576633,0.90617206,111200.0,111190.0,0.97782191]
[1756332576838,0.591791,111200.0,111190.0,1.03453191]
[1756332577034,0.93994206,111200.0,111190.0,1.03453191]
[1756332577239,2.80994206,111200.0,111190.0,0.97774191]
[1756332577639,2.46194206,111200.0,111190.0,1.03445191]
[1756332578547,2.46194206,111200.0,111190.0,0.07501191]
[1756332578847,2.46194206,111200.0,111190.0,1.03429191]
[1756332579040,2.44194206,111200.0,111190.0,1.03429191]
[1756332579240,2.44194206,111200.0,111190.0,0.13618191]
[1756332579446,2.44194206,111200.0,111190.0,1.09538191]
[1756332579641,2.44094206,111200.0,111190.0,1.09538191]
[1756332579847,2.44394206,111200.0,111190.0,1.09538191]
[1756332580334,2.44394206,111200.0,111190.0,1.05252191]
[1756332580538,2.44394206,111200.0,111190.0,1.09538191]
[1756332581347,2.44394206,111200.0,111190.0,1.05252191]
[1756332582047,2.44394206,111200.0,111190.0,1.02388191]
[1756332582545,2.44394206,111200.0,111190.0,1.05252191]
[1756332583347,2.44394206,111200.0,111190.0,1.09538191]
[1756332583847,2.129561,111200.0,111190.0,1.09538191]
[1756332584242,2.024471,111200.0,111190.0,1.40976297]
[1756332584551,2.129561,111200.0,111190.0,1.40976297]
[1756332584751,2.129561,111200.0,111190.0,1.09538191]
[1756332585049,2.44394206,111200.0,111190.0,1.09538191]
[1756332586544,2.44394206,111200.0,111190.0,1.09454191]
[1756332586848,0.94394206,111200.0,111190.0,1.09450191]
[1756332587045,0.94394206,111200.0,111190.0,0.09332191]
[1756332587244,0.629561,111200.0,111190.0,1.09450191]
[1756332587448,0.94394206,111200.0,111190.0,0.07501191]
[1756332587744,0.94394206,111200.0,111190.0,1.03329191]
[1756332587954,0.94394206,111200.0,111190.0,1.07607191]
[1756332588143,0.94394206,111200.0,111190.0,0.01830191]
[1756332588344,1.25394206,111200.0,111190.0,0.01830191]
[1756332588551,0.94394206,111200.0,111190.0,0.01830191]
[1756332588952,0.94394206,111200.0,111190.0,0.04637191]
[1756332589151,0.94394206,111200.0,111190.0,0.07501191]
[1756332589352,0.94394206,111200.0,111190.0,1.00445191]
[1756332589551,0.94394206,111200.0,111190.0,1.03309191]
[1756332589945,0.94394206,111200.0,111190.0,1.07595191]
[1756332591352,0.45222384,111200.0,111190.0,1.03309191]
[1756332591555,0.7666049,111200.0,111190.0,1.03309191]
[1756332591751,0.8565259,111200.0,111190.0,0.01830191]
[1756332593052,0.54214484,111200.0,111190.0,0.13618191]
[1756332593250,0.8565259,111200.0,111190.0,0.13618191]
[1756332595951,0.8565259,111200.0,111190.0,0.07501191]
[1756332596151,0.8565259,111200.0,111190.0,0.01830191]
[1756332596353,0.8765259,111200.0,111190.0,0.01830191]
[1756332596858,1.1765259,111200.0,111190.0,0.01830191]
[1756332597660,1.1865259,111200.0,111190.0,0.01830191]
[1756332597859,0.8565259,111200.0,111190.0,0.01830191]
[1756332598358,0.8565259,111200.0,111190.0,0.07501191]
[1756332599261,0.54214484,111200.0,111190.0,0.13753191]
[1756332599560,0.8565259,111200.0,111190.0,0.13753191]
[1756332599861,0.94394206,111200.0,111190.0,0.09402191]
[1756332600454,0.629561,111200.0,111190.0,0.09402191]
[1756332600656,0.629561,111200.0,111190.0,0.13753191]
[1756332600855,0.94394206,111200.0,111190.0,0.13753191]
[1756332601055,0.94394206,111200.0,111190.0,0.04637191]
[1756332601258,0.94394206,111200.0,111190.0,0.01830191]
[1756332601456,0.629561,111200.0,111190.0,0.01830191]
[1756332601656,0.94394206,111200.0,111190.0,0.01830191]
[1756332602256,0.94394206,111200.0,111190.0,0.07320191]
[1756332603059,0.94394206,111200.0,111190.0,0.13572191]
[1756332603657,0.629561,111200.0,111190.0,0.13572191]
[1756332603856,0.268761,111200.0,111190.0,0.13572191]
[1756332604255,0.629561,111200.0,111190.0,0.13572191]
[1756332604458,0.94394206,111200.0,111190.0,1.09168191]
[1756332605065,0.94194206,111200.0,111190.0,1.09152191]
[1756332605267,0.94294206,111200.0,111190.0,1.09152191]
[1756332605966,0.94194206,111200.0,111190.0,1.09152191]
[1756332606167,0.94394206,111200.0,111190.0,1.09152191]
[1756332607463,0.268761,111200.0,111190.0,1.09152191]
[1756332607668,0.58314206,111200.0,111190.0,1.09152191]
[1756332608663,0.58412206,111200.0,111190.0,1.09152191]
[1756332608862,0.239981,111200.0,111190.0,1.76670297]
[1756332609263,0.142721,111200.0,111190.0,2.01670297]
[1756332609662,0.175471,111200.0,111190.0,2.01670297]
[1756332609869,0.176471,111200.0,111190.0,2.01670297]
[1756332610659,0.176471,111200.0,111190.0,1.70232191]
[1756332610864,0.176471,111200.0,111190.0,2.01670297]
[1756332612067,0.141721,111200.0,111190.0,2.01670297]
[1756332612268,0.176471,111200.0,111190.0,2.01670297]
[1756332613265,0.176471,111200.0,111190.0,2.10663137]
[1756332613266,0.141721,111200.0,111190.0,2.10663137]
[1756332613467,0.091921,111200.0,111190.0,2.10663137]
[1756332614571,0.090921,111200.0,111190.0,2.10663137]
[1756332615173,0.089921,111200.0,111190.0,2.10663137]
[1756332616675,0.0900181,111210.0,111200.0,0.2073405]
[1756332616876,0.0899181,111210.0,111200.0,0.88252156]
[1756332617176,0.0899181,111210.0,111200.0,1.13252156]
[1756332621273,0.1603636,111220.0,111210.0,0.0899124]
[1756332621479,0.2103736,111220.0,111210.0,1.83559346]
[1756332621670,0.1602587,111220.0,111210.0,1.85351557]
[1756332622676,0.1612587,111220.0,111210.0,1.85351557]
[1756332623276,0.0713544,111220.0,111210.0,1.85351557]
[1756332623477,0.0713544,111220.0,111210.0,1.78913451]
[1756332623674,0.0713544,111220.0,111210.0,2.10351557]
[1756332624078,0.0703544,111220.0,111210.0,2.10351557]
[1756332624278,0.23739403,111230.0,111220.0,0.2073246]
[1756332624478,0.23729403,111230.0,111220.0,0.88250566]
[1756332624778,0.30506403,111230.0,111220.0,0.88250566]
[1756332625675,0.30506403,111230.0,111220.0,0.79260106]
[1756332625881,0.30506403,111230.0,111220.0,1.74480106]
[1756332626081,0.30506403,111230.0,111220.0,1.43042]
[1756332626278,0.30506403,111230.0,111220.0,1.74480106]
[1756332626582,0.37833189,111230.0,111220.0,1.74480106]
[1756332627176,0.37933189,111230.0,111220.0,1.74480106]
[1756332627782,0.38033189,111230.0,111220.0,1.74480106]
[1756332628486,0.38033189,111230.0,111220.0,1.83470566]
[1756332629385,0.38033189,111230.0,111220.0,1.5203246]
[1756332629585,0.38033189,111230.0,111220.0,1.83470566]
[1756332629980,0.25882189,111230.0,111220.0,1.83470566]
[1756332630184,0.22984189,111230.0,111220.0,1.83470566]
[1756332630380,0.20871189,111230.0,111220.0,1.83470566]
[1756332631687,0.16416886,111230.0,111220.0,2.08470566]
[1756332631885,0.07326786,111230.0,111220.0,2.08470566]
[1756332632081,0.1746138,111240.0,111230.0,0.2035066]
[1756332632286,0.1745138,111240.0,111230.0,0.89666401]
[1756332632783,0.1407838,111240.0,111230.0,0.89666401]
[1756332632988,0.1132138,111240.0,111230.0,0.89666401]
[1756332633190,0.0898938,111240.0,111230.0,0.89666401]
[1756332633384,0.1407838,111240.0,111230.0,0.89666401]
[1756332633579,0.19466043,111240.0,111230.0,0.89666401]
[1756332633778,0.16093043,111240.0,111230.0,0.89666401]
[1756332633982,0.13336043,111240.0,111230.0,0.89666401]
[1756332634385,0.11004043,111240.0,111230.0,0.89666401]
[1756332634889,0.1043,111250.0,111240.0,0.2034985]
[1756332634890,0.2294542,111250.0,111240.0,0.2034985]
[1756332635185,0.2630842,111250.0,111240.0,1.82939956]
[1756332635689,0.33560542,111250.0,111240.0,1.82939956]
[1756332635889,0.35646368,111250.0,111240.0,1.82939956]
[1756332636090,0.32774368,111250.0,111240.0,1.82939956]
[1756332636388,0.32774368,111250.0,111240.0,1.82907956]
[1756332637589,0.32874368,111250.0,111240.0,1.82907956]
[1756332637791,0.25974368,111250.0,111240.0,1.82907956]
[1756332637989,0.21799368,111250.0,111240.0,1.82907956]
[1756332638190,0.28946368,111250.0,111240.0,1.82907956]
[1756332638390,0.26074368,111250.0,111240.0,1.82907956]
[1756332638892,0.07452122,111250.0,111240.0,2.14346062]
[1756332639091,0.07452122,111250.0,111240.0,1.82907956]
[1756332639797,0.002,111250.0,111240.0,2.39346062]
[1756332640001,0.0899775,111260.0,111250.0,0.1088105]
[1756332640191,0.16093276,111260.0,111250.0,0.89676545]
[1756332641295,0.16493276,111260.0,111250.0,0.89676545]
[1756332641893,0.16493276,111260.0,111250.0,0.58238439]
[1756332642100,0.16493276,111260.0,111250.0,0.89676545]
[1756332642795,0.07505526,111260.0,111250.0,0.89676545]
[1756332643197,0.0002,111270.0,111260.0,0.1767027]
[1756332643396,0.0001,111270.0,111260.0,1.82758376]
[1756332643897,0.0899621,111280.0,111270.0,0.0898646]
[1756332644103,0.0898621,111280.0,111270.0,0.89720076]
[1756332645101,0.16463862,111280.0,111270.0,0.89720076]
[1756332645489,0.07477652,111280.0,111270.0,0.89720076]
[1756332645691,0.16463302,111280.0,111270.0,1.5312997]
[1756332645990,0.16463302,111280.0,111270.0,2.20648076]
[1756332646300,0.007,111280.0,111270.0,1.50800076]
[1756332646495,0.05089,111290.0,111280.0,0.1125992]
[1756332646702,0.16141831,111290.0,111280.0,0.88485026]
[1756332647203,0.07156981,111290.0,111280.0,0.88485026]
[1756332647394,0.04399981,111290.0,111280.0,0.88485026]
[1756332647596,0.02067981,111290.0,111280.0,0.88485026]
[1756332647900,0.007,111290.0,111280.0,0.88485026]
[1756332648201,0.00461,111290.0,111280.0,1.19923132]
[1756332648401,0.00461,111290.0,111280.0,0.5704692]
[1756332648604,0.00461,111290.0,111280.0,0.88485026]
[1756332649003,0.00461,111290.0,111280.0,1.83277026]
[1756332649305,0.00461,111290.0,111280.0,2.14715132]
[1756332650503,0.00461,111290.0,111280.0,1.5183892]
[1756332650702,0.0944585,111290.0,111280.0,1.83261026]
[1756332650904,0.00461,111290.0,111280.0,1.83261026]
[1756332651401,0.00461,111290.0,111280.0,1.83229026]
[1756332651800,0.00461,111290.0,111280.0,1.83221026]
[1756332652000,0.06166,111290.0,111280.0,1.83221026]
[1756332652402,0.02793,111290.0,111280.0,1.83221026]
[1756332653396,0.00461,111290.0,111280.0,1.83221026]
[1756332653802,0.00461,111290.0,111280.0,0.88485026]
[1756332654002,0.00461,111290.0,111280.0,1.83173026]
[1756332655899,0.00461,111290.0,111280.0,1.83137026]
[1756332656602,0.02793,111290.0,111280.0,1.83137026]
[1756332656804,0.00461,111290.0,111280.0,1.83137026]
[1756332658307,0.00461,111290.0,111280.0,1.5169892]
[1756332658508,0.00461,111290.0,111280.0,1.83137026]
[1756332658709,0.00161,111290.0,111280.0,1.83237026]
[1756332658907,0.30970655,111300.0,111290.0,0.2078885]
[1756332659105,0.30960655,111300.0,111290.0,0.90112818]
[1756332660105,0.26785655,111300.0,111290.0,0.90112818]
[1756332660309,0.16245657,111300.0,111290.0,0.90112818]
[1756332660506,0.07261087,111300.0,111290.0,0.90112818]
[1756332660707,0.1390156,111310.0,111300.0,0.2078804]
[1756332660906,0.1119394,111320.0,111310.0,0.2078723]
[1756332661108,0.40111,111330.0,111320.0,0.2078643]
[1756332661109,0.07196561,111330.0,111320.0,0.2078643]
[1756332661308,0.18684604,111330.0,111320.0,1.73878106]
[1756332661502,0.28403181,111330.0,111320.0,1.73874106]
[1756332661706,0.30232181,111330.0,111320.0,1.42436]
[1756332662214,0.30232181,111330.0,111320.0,1.73874106]
[1756332662606,0.30232181,111330.0,111320.0,1.82856536]
[1756332662813,0.28413181,111330.0,111320.0,1.82856536]
[1756332663010,0.24382181,111330.0,111320.0,1.82856536]
[1756332663210,0.24582181,111330.0,111320.0,1.82856536]
[1756332663408,0.30442181,111330.0,111320.0,1.73866106]
[1756332663610,0.55442181,111330.0,111320.0,1.73842106]
[1756332663806,0.32396561,111330.0,111320.0,1.82824586]
[1756332664012,0.0021,111330.0,111320.0,1.82824586]
[1756332664612,0.0021,111330.0,111320.0,1.73834106]
[1756332664613,0.1139266,111330.0,111320.0,1.73834106]
[1756332664913,0.05707,111330.0,111320.0,1.82816576]
[1756332665213,0.02411,111330.0,111320.0,1.82816576]
[1756332665417,0.0021,111330.0,111320.0,1.82816576]
[1756332666415,0.0021,111330.0,111320.0,0.88304576]
[1756332666616,0.1468866,111330.0,111320.0,1.82780576]
[1756332667117,0.1739566,111330.0,111320.0,1.82776576]
[1756332667910,0.1995966,111330.0,111320.0,0.79322106]
[1756332668117,0.82339766,111330.0,111320.0,1.42336]
[1756332668615,0.4825566,111330.0,111320.0,1.82756576]
[1756332669211,0.82339766,111330.0,111320.0,1.06248]
[1756332669408,0.82339766,111330.0,111320.0,1.42328]
[1756332670511,0.82339766,111330.0,111320.0,0.11804]
[1756332670812,1.18419766,111330.0,111320.0,0.97381]
[1756332671015,0.2569247,111320.0,111310.0,0.13666716]
[1756332671217,0.2569247,111320.0,111310.0,1.08058716]
[1756332671218,0.93220576,111320.0,111310.0,1.08058716]
[1756332672111,0.93320576,111320.0,111310.0,0.13646716]
[1756332672415,0.6198247,111320.0,111310.0,1.08038716]
[1756332672614,0.57340576,111320.0,111310.0,1.44118716]
[1756332672817,0.57340576,111320.0,111310.0,1.08038716]
[1756332673305,0.54694576,111320.0,111310.0,1.08038716]
[1756332673912,0.1739647,111320.0,111310.0,1.84540102]
[1756332674806,0.1739647,111320.0,111310.0,1.53101996]
[1756332675011,0.1739647,111320.0,111310.0,1.75556822]
[1756332675410,0.1739647,111320.0,111310.0,1.84540112]
[1756332675717,0.2142747,111320.0,111310.0,1.75528822]
[1756332675922,0.1739647,111320.0,111310.0,1.75528822]
[1756332676215,0.2142747,111320.0,111310.0,1.75528822]
[1756332676414,0.2142747,111320.0,111310.0,1.44090716]
[1756332676916,0.1739647,111320.0,111310.0,1.44090716]
[1756332677416,0.17147866,111320.0,111310.0,1.44090716]
[1756332677615,0.17147866,111320.0,111310.0,1.44074716]
[1756332677616,0.2142747,111320.0,111310.0,1.44074716]
[1756332677816,0.19854841,111320.0,111310.0,1.75512822]
[1756332678017,0.19854841,111320.0,111310.0,1.75480822]
[1756332678917,0.19854841,111320.0,111310.0,1.44042716]
[1756332679118,0.19854841,111320.0,111310.0,1.75480822]
[1756332679416,0.1739647,111320.0,111310.0,0.81164822]
[1756332679617,0.1739647,111320.0,111310.0,1.75460822]
[1756332680115,0.2142747,111320.0,111310.0,1.75460822]
[1756332680311,0.1139347,111320.0,111310.0,1.75460822]
[1756332680716,0.1468947,111320.0,111310.0,1.75460822]
[1756332681416,0.1458947,111320.0,111310.0,1.75460822]
[1756332681616,0.1458947,111320.0,111310.0,1.75660822]
[1756332681818,0.1448947,111320.0,111310.0,1.44322716]
[1756332682312,0.2305647,111320.0,111310.0,0.50026716]
[1756332682518,0.2305647,111320.0,111310.0,1.44282716]
[1756332682715,0.54494576,111320.0,111310.0,1.44282716]
[1756332683014,0.4476047,111320.0,111310.0,0.13946716]
[1756332683318,0.1119347,111320.0,111310.0,1.48620102]
[1756332683514,0.1119347,111320.0,111310.0,0.45384822]
[1756332683817,0.54494576,111320.0,111310.0,0.13946716]
[1756332684018,0.57140576,111320.0,111310.0,0.13946716]
[1756332684214,1.18220576,111320.0,111310.0,1.08174716]
[1756332685215,1.18220576,111320.0,111310.0,1.08074716]
[1756332685614,1.51220576,111320.0,111310.0,0.13746716]
[1756332685819,1.18220576,111320.0,111310.0,0.13746716]
[1756332686025,1.18220576,111320.0,111310.0,1.07950716]
[1756332686521,1.56220576,111320.0,111310.0,1.07950716]
[1756332686919,1.50220576,111320.0,111310.0,0.09552716]
[1756332687119,1.55220576,111320.0,111310.0,1.03740716]
[1756332687418,1.51220576,111320.0,111310.0,1.03740716]
[1756332687618,1.51575116,111320.0,111310.0,1.03732716]
[1756332687819,1.20575116,111320.0,111310.0,1.03732716]
[1756332688022,0.8913701,111320.0,111310.0,1.07926716]
[1756332688321,1.20575116,111320.0,111310.0,1.07926716]
[1756332689622,1.20675116,111320.0,111310.0,1.07826716]
[1756332689822,1.20775116,111320.0,111310.0,1.03632716]
[1756332690018,1.20775116,111320.0,111310.0,1.07753716]
[1756332691321,1.20675116,111320.0,111310.0,1.07853716]
[1756332691521,1.18320576,111320.0,111310.0,1.07853716]
[1756332691722,1.18220576,111320.0,111310.0,1.07853716]
[1756332692317,1.18220576,111320.0,111310.0,0.13673716]
[1756332692531,1.82658682,111320.0,111310.0,0.07702716]
[1756332692718,1.82658682,111320.0,111310.0,6e-08]
[1756332692922,0.2576921,111310.0,111300.0,0.51788]
[1756332693128,0.93297316,111310.0,111300.0,0.54398]
[1756332693320,1.27297316,111310.0,111300.0,0.05502]
[1756332693527,1.27297316,111310.0,111300.0,0.99598]
[1756332694230,1.27297316,111310.0,111300.0,0.99594]
[1756332694624,1.27297316,111310.0,111300.0,1.05572]
[1756332694831,1.51297316,111310.0,111300.0,0.02872]
[1756332695023,0.0898402,111300.0,111290.0,1.00022862]
[1756332695218,0.0898402,111300.0,111290.0,1.02874862]
[1756332695219,0.86531126,111300.0,111290.0,1.02874862]
[1756332696624,1.3026919,111300.0,111290.0,0.09164862]
[1756332696824,0.2585783,111290.0,111280.0,0.0002]
[1756332697029,0.2585863,111280.0,111270.0,0.1048251]
[1756332697226,0.93386736,111280.0,111270.0,1.0450251]
[1756332697533,0.57306736,111280.0,111270.0,1.0450251]
[1756332697938,0.2313563,111280.0,111270.0,1.0450251]
[1756332698130,0.2586863,111280.0,111270.0,1.0450251]
[1756332698330,0.2313563,111280.0,111270.0,1.0450251]
[1756332698530,0.2303563,111280.0,111270.0,1.0450251]
[1756332698730,0.26805168,111280.0,111270.0,1.0480251]
[1756332698928,0.26805168,111280.0,111270.0,1.0767451]
[1756332699432,0.26805168,111280.0,111270.0,1.0787451]
[1756332699635,0.54142274,111280.0,111270.0,1.0787451]
[1756332699833,0.65485534,111280.0,111270.0,1.0787451]
[1756332700041,0.68218534,111280.0,111270.0,1.0787451]
[1756332700326,0.65485534,111280.0,111270.0,1.0787451]
[1756332701835,0.68218534,111280.0,111270.0,1.0787451]
[1756332702637,0.65485534,111280.0,111270.0,1.0787451]
[1756332703538,0.68218534,111280.0,111270.0,1.4395451]
[1756332704540,0.65485534,111280.0,111270.0,1.4395451]
[1756332705240,0.23179428,111280.0,111270.0,1.4395451]
[1756332705539,0.27280428,111280.0,111270.0,1.4395451]
[1756332705739,0.58718534,111280.0,111270.0,1.4395451]
[1756332706039,0.54617534,111280.0,111270.0,1.4395451]
[1756332706437,0.58718534,111280.0,111270.0,1.4395451]
[1756332710445,0.27280428,111280.0,111270.0,1.4395451]
[1756332710745,0.54617534,111280.0,111270.0,1.4395451]
[1756332710953,0.58718534,111280.0,111270.0,1.4395451]
[1756332711745,0.68218534,111280.0,111270.0,0.1383451]
[1756332712042,0.68218534,111280.0,111270.0,1.0765851]
[1756332713144,0.68218534,111280.0,111270.0,0.1383451]
[1756332713345,1.9473664,111280.0,111270.0,0.1383451]
[1756332713538,1.04298534,111280.0,111270.0,1.0165651]
[1756332713744,1.0629155,111280.0,111270.0,1.0577751]
[1756332715235,1.0629155,111280.0,111270.0,1.0760251]
[1756332715539,0.76853444,111280.0,111270.0,0.1383451]
[1756332715744,1.0629155,111280.0,111270.0,0.1383451]
[1756332715942,1.0629155,111280.0,111270.0,0.0971351]
[1756332716744,1.0629155,111280.0,111270.0,0.0785651]
[1756332717144,1.4029155,111280.0,111270.0,0.0785651]
[1756332717735,1.96729656,111280.0,111270.0,1e-07]
[1756332717946,0.2585941,111270.0,111260.0,0.56]
[1756332718146,1.31387516,111270.0,111260.0,0.0263]
[1756332718550,0.1576922,111260.0,111250.0,1.04260389]
[1756332718841,0.77662106,111260.0,111250.0,1.06533389]
[1756332719042,0.93431326,111260.0,111250.0,0.15125389]
[1756332719244,0.93431326,111260.0,111250.0,1.08833389]
[1756332719752,0.93031326,111260.0,111250.0,1.11774389]
[1756332720250,0.93031326,111260.0,111250.0,1.09981389]
[1756332720548,0.6159322,111260.0,111250.0,0.18574389]
[1756332720749,0.92831326,111260.0,111250.0,0.18574389]
[1756332721138,0.6139322,111260.0,111250.0,0.18574389]
[1756332721343,0.92831326,111260.0,111250.0,0.18574389]
[1756332721844,0.92831326,111260.0,111250.0,0.18774389]
[1756332722042,0.92831326,111260.0,111250.0,0.16481389]
[1756332722350,0.92831326,111260.0,111250.0,0.08195389]
[1756332722557,1.04394163,111260.0,111250.0,0.08195389]
[1756332722748,1.65394163,111260.0,111240.0,0.07024]
[1756332722952,0.93432136,111250.0,111240.0,0.11637]
[1756332723147,0.93432136,111250.0,111230.0,0.10495635]
[1756332723148,0.1308784,111240.0,111230.0,0.10495635]
[1756332723352,0.93432946,111240.0,111230.0,0.04534635]
[1756332723550,0.93432946,111240.0,111230.0,0.12768635]
[1756332723748,1.25432946,111240.0,111230.0,0.12783635]
[1756332723945,1.25432946,111240.0,111230.0,5e-08]
[1756332724154,0.2561565,111230.0,111220.0,1.04186]
[1756332724351,0.93133756,111230.0,111220.0,1.04166]
[1756332724947,0.92733756,111230.0,111220.0,0.13279]
[1756332725352,0.92533756,111230.0,111220.0,0.13279]
[1756332725755,0.92533756,111230.0,111220.0,0.04623]
[1756332726051,0.92533756,111230.0,111220.0,0.05023]
[1756332726956,0.92633756,111230.0,111220.0,0.007]
[1756332727157,0.2591645,111220.0,111210.0,0.11553211]
[1756332727353,0.2591645,111220.0,111210.0,0.11533211]
[1756332727354,0.93434556,111220.0,111210.0,0.11533211]
[1756332727858,0.93334556,111220.0,111210.0,0.01792211]
[1756332728054,0.97010712,111220.0,111210.0,0.01792211]
[1756332728659,1.31210712,111220.0,111210.0,0.01892211]
[1756332728950,0.97210712,111220.0,111210.0,0.01892211]
[1756332729151,1.34210712,111220.0,111210.0,0.01892211]
[1756332729355,1.29610712,111220.0,111210.0,0.01892211]
[1756332729552,0.99610712,111220.0,111210.0,0.01892211]
[1756332730345,0.97610712,111220.0,111210.0,0.01892211]
[1756332730554,1.04745405,111220.0,111210.0,0.01892211]
[1756332730749,1.04745405,111220.0,111210.0,0.04629211]
[1756332730750,0.98307299,111220.0,111210.0,0.04629211]
[1756332731052,0.98307299,111220.0,111210.0,0.18120211]
[1756332731053,1.04745405,111220.0,111210.0,0.18120211]
[1756332738163,1.04745405,111220.0,111210.0,0.08808211]
[1756332738664,1.04745405,111220.0,111210.0,0.04629211]
[1756332740869,1.04745405,111220.0,111210.0,0.01892211]
[1756332741666,1.37745405,111220.0,111210.0,1e-08]
[1756332742063,1.04745405,111220.0,111210.0,1e-08]
[1756332742263,1.36745405,111220.0,111210.0,1e-08]
[1756332742969,0.2581726,111210.0,111200.0,0.02757]
[1756332743161,0.57255366,111210.0,111200.0,0.02737]
[1756332743659,0.2591807,111200.0,111190.0,1.47459479]
[1756332743862,0.57356176,111200.0,111190.0,1.11351479]
[1756332744260,0.57356176,111200.0,111190.0,0.27737]
[1756332744461,0.93436176,111200.0,111190.0,0.27737]
[1756332744674,0.93436176,111200.0,111190.0,0.02737]